fUSD/lending_fUSD_20260702
["ID","MTS","AMOUNT","RATE_DAILY","PERIOD"]
[426833649,1782924646000,-2380.60569187,0.00016807,2]
[426833711,1782925831000,-151.0,0.00014115,2]
[426833712,1782925831000,-150.0,0.00014115,2]
[426833713,1782925831000,-153.0,0.00014115,2]
[426833719,1782925831000,-150.0,0.00014116,2]
[426833709,1782925831000,-151.0,0.00014115,2]
[426833716,1782925831000,-151.0,0.00014115,2]
[426833715,1782925831000,-152.0,0.00014115,2]
[426833710,1782925831000,-152.0,0.00014115,2]
[426833705,1782925831000,-171.12578291,0.00014086,2]
[426833702,1782925831000,-150.0,0.00013516,2]
[426833708,1782925831000,-151.0,0.00014115,2]
[426833714,1782925831000,-150.0,0.00014115,2]
[426833706,1782925831000,-150.0,0.00014115,2]
[426833701,1782925831000,-179.85709186,0.00013316,2]
[426833704,1782925831000,-171.12578291,0.00014086,2]
[426833703,1782925831000,-250.0,0.00013716,2]
[426833699,1782925831000,-840.84460454,0.00013216,2]
[426833700,1782925831000,-245.70010356,0.00013316,2]
[426833707,1782925831000,-257.6,0.00014115,2]
[426833720,1782925831000,-151.0,0.00014116,2]
[426833726,1782925831000,-151.0,0.00014116,2]
[426833722,1782925831000,-152.0,0.00014116,2]
[426833724,1782925831000,-150.0,0.00014116,2]
[426833733,1782925831000,-150.0,0.00014116,2]
[426833736,1782925831000,-153.0,0.00014116,2]
[426833735,1782925831000,-150.0,0.00014116,2]
[426833737,1782925831000,-150.0,0.00014116,2]
[426833731,1782925831000,-151.0,0.00014116,2]
[426833729,1782925831000,-151.0,0.00014116,2]
[426833738,1782925831000,-151.0,0.00014116,2]
[426833732,1782925831000,-151.0,0.00014116,2]
[426833734,1782925831000,-151.0,0.00014116,2]
[426833739,1782925831000,-150.0,0.00014116,2]
[426833727,1782925831000,-151.0,0.00014116,2]
[426833718,1782925831000,-151.0,0.00014116,2]
[426833725,1782925831000,-151.0,0.00014116,2]
[426833723,1782925831000,-151.0,0.00014116,2]
[426833721,1782925831000,-152.0,0.00014116,2]
[426833717,1782925831000,-151.0,0.00014116,2]
[426833730,1782925831000,-151.0,0.00014116,2]
[426833728,1782925831000,-153.0,0.00014116,2]
[426833761,1782925832000,-876.88643359,0.00016611,2]
[426833754,1782925832000,-802.67328899,0.0001657,2]
[426833760,1782925832000,-629.13349206,0.00016608,2]
[426833757,1782925832000,-629.13349206,0.00016591,2]
[426833752,1782925832000,-629.13349206,0.00016561,2]
[426833756,1782925832000,-876.88643359,0.00016591,2]
[426833758,1782925832000,-876.88643359,0.00016591,2]
[426833759,1782925832000,-802.67328899,0.00016604,2]
[426833765,1782925832000,-667.49503493,0.00016638,2]
[426833766,1782925832000,-629.13349206,0.00016638,2]
[426833767,1782925832000,-235.21,0.00016645,2]
[426833764,1782925832000,-209.39139866,0.00016638,2]
[426833755,1782925832000,-629.13349206,0.00016577,2]
[426833763,1782925832000,-669.68385731,0.00016623,2]
[426833744,1782925832000,-250.0,0.00014648,2]
[426833753,1782925832000,-629.13349206,0.00016565,2]
[426833751,1782925832000,-876.88643359,0.00016558,2]
[426833748,1782925832000,-403.0,0.0001526,2]
[426833741,1782925832000,-151.0,0.00014116,2]
[426833746,1782925832000,-163.89,0.0001523,2]
[426833747,1782925832000,-255.0,0.0001523,2]
[426833749,1782925832000,-417.46753052,0.00015791,2]
[426833750,1782925832000,-3646.855999,0.00016475,2]
[426833745,1782925832000,-400.50231845,0.00015126,2]
[426833743,1782925832000,-500.0,0.00014648,2]
[426833742,1782925832000,-250.0,0.00014648,2]
[426833740,1782925832000,-152.0,0.00014116,2]
[426833769,1782925832000,-629.13349206,0.00016663,2]
[426833762,1782925832000,-876.88643359,0.00016612,2]
[426833771,1782925832000,-669.68385731,0.00016678,2]
[426833768,1782925832000,-629.13349206,0.00016649,2]
[426833773,1782925832000,-567.57194744,0.00016699,2]
[426833770,1782925832000,-669.68385731,0.00016665,2]
[426833800,1782925832000,-876.88643359,0.00016866,2]
[426833799,1782925832000,-2415.8792666,0.00016862,2]
[426833797,1782925832000,-500.0,0.00016858,2]
[426833796,1782925832000,-410.53461309,0.00016858,2]
[426833801,1782925832000,-669.68385731,0.00016871,2]
[426833794,1782925832000,-500.0,0.00016858,2]
[426833802,1782925832000,-356.61876033,0.00016939,2]
[426833795,1782925832000,-312.83274044,0.00016858,2]
[426833789,1782925832000,-1298.46189544,0.00016819,2]
[426833790,1782925832000,-4795.1199897,0.00016819,2]
[426833791,1782925832000,-629.13349206,0.00016825,2]
[426833793,1782925832000,-174.33892591,0.00016858,2]
[426833786,1782925832000,-802.67328899,0.0001679,2]
[426833788,1782925832000,-2157.47271409,0.00016807,2]
[426833785,1782925832000,-629.13349206,0.00016788,2]
[426833787,1782925832000,-629.13349206,0.00016795,2]
[426833774,1782925832000,-629.13349206,0.00016712,2]
[426833798,1782925832000,-802.67328899,0.00016859,2]
[426833772,1782925832000,-629.13349206,0.00016697,2]
[426833792,1782925832000,-629.13349206,0.00016841,2]
[426833776,1782925832000,-458.44747329,0.00016721,2]
[426833777,1782925832000,-3021.63127068,0.00016721,2]
[426833778,1782925832000,-6724.7349291,0.00016728,2]
[426833775,1782925832000,-6519.92125603,0.00016721,2]
[426833780,1782925832000,-876.88643359,0.00016746,2]
[426833783,1782925832000,-408.16131623,0.0001675,2]
[426833781,1782925832000,-636.02376775,0.00016749,2]
[426833782,1782925832000,-166.64952124,0.00016749,2]
[426833784,1782925832000,-468.72511736,0.0001675,2]
[426833779,1782925832000,-876.88643359,0.0001674,2]
[426833832,1782925837000,-501.0,0.00018,2]
[426833827,1782925837000,-368.71563967,0.00016939,2]
[426833828,1782925837000,-165.57,0.00017683,2]
[426833830,1782925837000,-172.13,0.0001793,2]
[426833829,1782925837000,-159.79,0.00017919,2]
[426833831,1782925837000,-1301.38,0.00017953,2]
[426833833,1782925837000,-2398.99,0.00018104,2]
[426833838,1782925837000,-501.0,0.00018827,2]
[426833843,1782925837000,-501.0,0.00019653,3]
[426833836,1782925837000,-165.57,0.00018272,2]
[426833835,1782925837000,-200.0,0.00018198,2]
[426833837,1782925837000,-285.64355974,0.00018516,2]
[426833839,1782925837000,-194.92689115,0.00018827,2]
[426833842,1782925837000,-165.57,0.00019451,2]
[426833840,1782925837000,-165.57,0.00018862,2]
[426833841,1782925837000,-170.19,0.00019018,2]
[426833844,1782925837000,-296.82,0.0001995,2]
[426833834,1782925837000,-187.22,0.00018185,2]
[426833862,1782925838000,-151.0,0.00021158,2]
[426833855,1782925838000,-151.0,0.00021158,2]
[426833857,1782925838000,-151.0,0.00021158,2]
[426833860,1782925838000,-151.0,0.00021158,2]
[426833852,1782925838000,-299.99,0.00020951,7]
[426833856,1782925838000,-151.0,0.00021158,2]
[426833851,1782925838000,-935.0,0.00020587,2]
[426833846,1782925838000,-501.0,0.0002048,4]
[426833859,1782925838000,-151.0,0.00021158,2]
[426833850,1782925838000,-6089.0,0.00020587,2]
[426833847,1782925838000,-150.0,0.00020587,2]
[426833848,1782925838000,-3566.0,0.00020587,2]
[426833849,1782925838000,-1278.0,0.00020587,2]
[426833858,1782925838000,-151.0,0.00021158,2]
[426833861,1782925838000,-151.0,0.00021158,2]
[426833854,1782925838000,-151.0,0.00021158,2]
[426833845,1782925838000,-688.12,0.00020145,2]
[426833864,1782925838000,-151.0,0.00021158,2]
[426833877,1782925838000,-160.0,0.00021265,2]
[426833881,1782925838000,-73.32084173,0.000213,2]
[426833876,1782925838000,-285.05513885,0.00021265,2]
[426833853,1782925838000,-150.99,0.00020951,2]
[426833870,1782925838000,-151.0,0.00021158,2]
[426833869,1782925838000,-151.0,0.00021158,2]
[426833868,1782925838000,-151.0,0.00021158,2]
[426833879,1782925838000,-3105.42096265,0.000213,2]
[426833867,1782925838000,-151.0,0.00021158,2]
[426833871,1782925838000,-151.0,0.00021158,2]
[426833865,1782925838000,-151.0,0.00021158,2]
[426833863,1782925838000,-151.0,0.00021158,2]
[426833875,1782925838000,-216.66345934,0.00021265,2]
[426833872,1782925838000,-151.0,0.00021158,2]
[426833873,1782925838000,-151.0,0.00021158,2]
[426833874,1782925838000,-4511.6258,0.00021165,2]
[426833866,1782925838000,-151.0,0.00021158,2]
[426834051,1782925839000,-501.0,0.00021307,5]
[426834052,1782925839000,-142.02528789,0.000215,2]
[426834050,1782925839000,-481.98805562,0.000213,2]
[426834054,1782925840000,-2776.54448674,0.000215,2]
[426834062,1782925842000,-1076.78645624,0.000219,2]
[426834059,1782925842000,-555.30889735,0.000215,2]
[426834060,1782925842000,-3105.42096265,0.000217,2]
[426834061,1782925842000,-555.30889735,0.000217,2]
[426834058,1782925842000,-186.85118802,0.000215,2]
[426834069,1782925845000,-2028.63450641,0.000219,2]
[426834070,1782925845000,-59.97360514,0.000219,2]
[426834071,1782925846000,-495.33529221,0.000219,2]
[426834072,1782925846000,-1157.54470825,0.00021918,2]
[426834089,1782927031000,-1000.0,0.00013702,2]
[426834085,1782927031000,-279.849939,0.00013702,2]
[426834090,1782927031000,-1000.0,0.00013702,2]
[426834086,1782927031000,-720.150061,0.00013702,2]
[426834087,1782927031000,-1000.0,0.00013702,2]
[426834088,1782927031000,-1000.0,0.00013702,2]
[426834094,1782927031000,-305.22,0.00013742,2]
[426834092,1782927031000,-250.0,0.00013702,2]
[426834095,1782927031000,-253.35506988,0.0001375,2]
[426834091,1782927031000,-1000.0,0.00013702,2]
[426834093,1782927031000,-305.22,0.00013702,2]
[426834141,1782927032000,-305.22,0.00014744,2]
[426834130,1782927032000,-295.98818983,0.00014624,2]
[426834145,1782927032000,-150.0,0.00014789,2]
[426834148,1782927032000,-305.22,0.00014904,2]
[426834144,1782927032000,-305.22,0.00014784,2]
[426834146,1782927032000,-305.22,0.00014824,2]
[426834147,1782927032000,-305.22,0.00014864,2]
[426834149,1782927032000,-305.22,0.00014944,2]
[426834153,1782927032000,-250.0,0.00015072,2]
[426834152,1782927032000,-305.22,0.00015065,2]
[426834151,1782927032000,-305.22,0.00015025,2]
[426834159,1782927032000,-177.37,0.00015421,2]
[426834158,1782927032000,-200.0,0.00015421,7]
[426834157,1782927032000,-200.0,0.00015421,2]
[426834156,1782927032000,-150.0,0.00015297,2]
[426834155,1782927032000,-305.22,0.00015145,2]
[426834160,1782927032000,-189.05,0.00015792,2]
[426834162,1782927032000,-137.08770843,0.00016321,2]
[426834154,1782927032000,-305.22,0.00015105,2]
[426834161,1782927032000,-13.91229157,0.00016321,2]
[426834163,1782927032000,-151.0,0.00016321,2]
[426834171,1782927032000,-151.0,0.00016321,2]
[426834139,1782927032000,-305.22,0.00014704,2]
[426834150,1782927032000,-305.22,0.00014984,2]
[426834137,1782927032000,-305.22,0.00014664,2]
[426834102,1782927032000,-305.22,0.00014023,2]
[426834132,1782927032000,-9.23181017,0.00014624,2]
[426834172,1782927032000,-153.0,0.00016321,2]
[426834096,1782927032000,-305.22,0.00013783,2]
[426834097,1782927032000,-305.22,0.00013823,2]
[426834098,1782927032000,-305.22,0.00013863,2]
[426834099,1782927032000,-305.22,0.00013903,2]
[426834101,1782927032000,-305.22,0.00013983,2]
[426834103,1782927032000,-305.22,0.00014063,2]
[426834105,1782927032000,-305.22,0.00014143,2]
[426834100,1782927032000,-305.22,0.00013943,2]
[426834107,1782927032000,-305.22,0.00014223,2]
[426834104,1782927032000,-305.22,0.00014103,2]
[426834106,1782927032000,-305.22,0.00014183,2]
[426834108,1782927032000,-305.22,0.00014263,2]
[426834109,1782927032000,-305.22,0.00014303,2]
[426834110,1782927032000,-305.22,0.00014343,2]
[426834116,1782927032000,-263.23,0.00014424,2]
[426834112,1782927032000,-305.22,0.00014384,2]
[426834114,1782927032000,-305.22,0.00014424,2]
[426834125,1782927032000,-305.22,0.00014544,2]
[426834120,1782927032000,-305.22,0.00014464,2]
[426834118,1782927032000,-176.08,0.00014424,2]
[426834127,1782927032000,-305.22,0.00014584,2]
[426834123,1782927032000,-305.22,0.00014504,2]
[426834135,1782927032000,-150.0,0.00014644,2]
[426834164,1782927032000,-151.0,0.00016321,2]
[426834199,1782927032000,-152.0,0.00016621,2]
[426834166,1782927032000,-153.0,0.00016321,2]
[426834201,1782927032000,-151.0,0.00016621,2]
[426834197,1782927032000,-150.0,0.00016621,2]
[426834200,1782927032000,-150.0,0.00016621,2]
[426834205,1782927032000,-1315.66,0.00017882,2]
[426834203,1782927032000,-908.0,0.00016621,2]
[426834207,1782927032000,-200.0,0.00017902,2]
[426834202,1782927032000,-151.0,0.00016621,2]
[426834198,1782927032000,-151.0,0.00016621,2]
[426834206,1782927032000,-877.55,0.00017893,2]
[426834204,1782927032000,-160.44,0.00017559,2]
[426834217,1782927032000,-1101.3,0.00018126,2]
[426834208,1782927032000,-150.0,0.00017918,2]
[426834218,1782927032000,-780.98,0.00018147,2]
[426834209,1782927032000,-153.76,0.00017944,2]
[426834213,1782927032000,-501.0,0.00018,2]
[426834212,1782927032000,-1000.0,0.00017975,2]
[426834215,1782927032000,-152.8,0.00018058,2]
[426834210,1782927032000,-568.9829183,0.00017974,2]
[426834211,1782927032000,-637.37422916,0.00017974,2]
[426834216,1782927032000,-1661.08,0.00018086,2]
[426834167,1782927032000,-124.44061157,0.00016321,2]
[426834219,1782927032000,-1797.44055561,0.00018212,2]
[426834220,1782927032000,-343.29292514,0.00018212,2]
[426834196,1782927032000,-152.0,0.00016621,2]
[426834192,1782927032000,-151.0,0.00016521,2]
[426834214,1782927032000,-154.88,0.00018043,2]
[426834185,1782927032000,-75.20612748,0.00016421,2]
[426834165,1782927032000,-152.0,0.00016321,2]
[426834169,1782927032000,-153.0,0.00016321,2]
[426834170,1782927032000,-153.0,0.00016321,2]
[426834173,1782927032000,-150.0,0.00016321,2]
[426834175,1782927032000,-144.16283466,0.00016421,2]
[426834177,1782927032000,-151.0,0.00016421,2]
[426834191,1782927032000,-152.0,0.00016521,2]
[426834176,1782927032000,-7.83716534,0.00016421,2]
[426834184,1782927032000,-153.0,0.00016421,2]
[426834181,1782927032000,-80.20612748,0.00016421,2]
[426834183,1782927032000,-151.0,0.00016421,2]
[426834178,1782927032000,-151.0,0.00016421,2]
[426834174,1782927032000,-152.0,0.00016421,2]
[426834182,1782927032000,-70.79387252,0.00016421,2]
[426834179,1782927032000,-153.0,0.00016421,2]
[426834186,1782927032000,-75.79387252,0.00016421,2]
[426834168,1782927032000,-26.55938843,0.00016321,2]
[426834190,1782927032000,-151.0,0.00016521,2]
[426834189,1782927032000,-152.0,0.00016521,2]
[426834194,1782927032000,-151.0,0.00016521,2]
[426834187,1782927032000,-151.0,0.00016521,2]
[426834193,1782927032000,-150.0,0.00016521,2]
[426834188,1782927032000,-151.0,0.00016521,2]
[426834180,1782927032000,-150.0,0.00016421,2]
[426834195,1782927032000,-150.0,0.00016521,2]
[426834248,1782927038000,-384.43866781,0.00018737,2]
[426834252,1782927038000,-330.1,0.00019136,2]
[426834250,1782927038000,-501.0,0.00018886,2]
[426834246,1782927038000,-1661.08,0.00018538,2]
[426834249,1782927038000,-349.49,0.0001882,2]
[426834243,1782927038000,-1000.0,0.00013702,2]
[426834247,1782927038000,-213.7908285,0.00018737,2]
[426834254,1782927038000,-110.35398444,0.00019443,2]
[426834245,1782927038000,-6768.72651925,0.00018212,2]
[426834244,1782927038000,-520.12,0.00014387,2]
[426834251,1782927038000,-1661.08,0.00018991,2]
[426834253,1782927038000,-4980.42,0.00019244,2]
[426834259,1782927038000,-1550.72601556,0.00019443,2]
[426834261,1782927038000,-365.31713387,0.00019609,2]
[426834268,1782927038000,-199.5,0.00020297,2]
[426834260,1782927038000,-889.17286613,0.00019609,2]
[426834269,1782927038000,-501.0,0.00020657,4]
[426834270,1782927038000,-166.66,0.00020759,2]
[426834266,1782927038000,-423.17254071,0.00019895,2]
[426834271,1782927038000,-890.81745929,0.00020891,2]
[426834264,1782927038000,-501.0,0.00019771,3]
[426834265,1782927038000,-1237.90745929,0.00019895,2]
[426834262,1782927038000,-165.93321965,0.00019723,2]
[426834263,1782927038000,-298.38111558,0.00019723,2]
[426834267,1782927038000,-153.76,0.00020187,2]
[426834276,1782927039000,-807.01769678,0.00020891,2]
[426834280,1782927040000,-847.88066303,0.00020991,2]
[426834281,1782927040000,-177.60512297,0.00020991,2]
[426834278,1782927040000,-480.0329638,0.00020991,2]
[426834279,1782927040000,-485.51187317,0.00020991,2]
[426834277,1782927040000,-385.09024393,0.00020891,2]
[426834287,1782927042000,-464.03160348,0.00020991,2]
[426834289,1782927042000,-2764.01436946,0.00021091,2]
[426834285,1782927042000,-1000.0,0.00013702,2]
[426834292,1782927043000,-5328.0724259,0.00021091,2]
[426834290,1782927043000,-2255.53591818,0.00021091,2]
[426834294,1782927043000,-216.66345934,0.0002126,2]
[426834291,1782927043000,-360968.84365426,0.00021091,2]
[426834293,1782927043000,-172121.0116088,0.00021091,2]
[426834295,1782927043000,-160.0,0.0002126,2]
[426834297,1782927043000,-3566.0,0.00021279,2]
[426834299,1782927043000,-185.10296578,0.000213,2]
[426834298,1782927043000,-4968.67354024,0.000213,2]
[426834304,1782927043000,-500.0,0.00021671,2]
[426834301,1782927043000,-4968.67354024,0.000215,2]
[426834296,1782927043000,-1278.0,0.00021279,2]
[426834300,1782927043000,-152.0,0.00021334,3]
[426834306,1782927043000,-641.63672639,0.00021692,2]
[426834302,1782927043000,-185.10296578,0.000215,2]
[426834303,1782927043000,-501.0,0.00021543,5]
[426834305,1782927043000,-184.96,0.00021678,2]
[426834319,1782927043000,-1298.99566407,0.000219,2]
[426834318,1782927043000,-531.60651069,0.000219,2]
[426834317,1782927043000,-1606.12184747,0.000219,2]
[426834314,1782927043000,-2433.24,0.000219,2]
[426834310,1782927043000,-25679.68646493,0.000219,2]
[426834316,1782927043000,-578.07010161,0.000219,2]
[426834320,1782927043000,-1110.1141322,0.000219,2]
[426834311,1782927043000,-262.0,0.000219,2]
[426834313,1782927043000,-2179.9455327,0.000219,2]
[426834312,1782927043000,-3543.96811298,0.000219,2]
[426834309,1782927043000,-1000.0,0.000218,2]
[426834307,1782927043000,-4968.67354024,0.000217,2]
[426834308,1782927043000,-185.10296578,0.000217,2]
[426834315,1782927043000,-696.40372243,0.000219,2]
[426834336,1782927046000,-1169.33116347,0.000221,2]
[426834335,1782927046000,-1230.58803994,0.000221,2]
[426834333,1782927046000,-2021.48590217,0.000221,2]
[426834334,1782927046000,-547.26843466,0.000221,2]
[426834326,1782927046000,-4968.67354024,0.000219,2]
[426834327,1782927046000,-5000.0,0.00021918,2]
[426834329,1782927046000,-200.0,0.00021918,2]
[426834331,1782927046000,-494.61813974,0.00021961,2]
[426834328,1782927046000,-150.0,0.00021918,2]
[426834325,1782927046000,-9725.28371413,0.000219,2]
[426834337,1782927046000,-200.0,0.00022137,2]
[426834330,1782927046000,-160.44,0.00021949,2]
[426834340,1782927046000,-846.58558096,0.000223,2]
[426834332,1782927046000,-403.5,0.00022,10]
[426834339,1782927046000,-288.31300057,0.000222,2]
[426834349,1782927046000,-310.0,0.000227,2]
[426834348,1782927046000,-203.0,0.000227,2]
[426834338,1782927046000,-2.99893454,0.000222,2]
[426834346,1782927046000,-262.85812692,0.00022611,2]
[426834345,1782927046000,-4968.67354024,0.000226,2]
[426834344,1782927046000,-153.76,0.0002243,2]
[426834350,1782927046000,-4968.67354024,0.000228,2]
[426834347,1782927046000,-317.0,0.000227,2]
[426834342,1782927046000,-641.63672639,0.00022392,2]
[426834355,1782927046000,-150.0,0.00023014,2]
[426834351,1782927046000,-1600.0,0.000229,8]
[426834343,1782927046000,-501.0,0.00022429,6]
[426834341,1782927046000,-4122.08795928,0.000223,2]
[426834353,1782927046000,-4968.67354024,0.00023,2]
[426834360,1782927047000,-4519.11169045,0.000233,2]
[426834357,1782927047000,-641.63672639,0.00023093,2]
[426834414,1782928232000,-2745.88941027,0.000146,5]
[426834413,1782928232000,-3000.0,0.000145,5]
[426834411,1782928232000,-1500.0,0.000144,5]
[426834412,1782928232000,-361.99685691,0.000145,2]
[426834423,1782928238000,-1410.93907066,0.000146,5]
[426834422,1782928238000,-270.14835,0.000146,5]
[426834425,1782928238000,-952.20914707,0.000147,5]
[426834426,1782928238000,-415.999,0.000147,5]
[426834424,1782928238000,-173.02316907,0.000146,5]
[426834456,1782928240000,-150.0,0.00016421,2]
[426834457,1782928240000,-150.0,0.00016421,2]
[426834447,1782928240000,-5926711.27663886,0.00015,2]
[426834445,1782928240000,-446.16196042,0.00014999,2]
[426834442,1782928240000,-226.07643519,0.000149,2]
[426834443,1782928240000,-1989.96493088,0.000149,2]
[426834444,1782928240000,-1577.29301302,0.000149,2]
[426834439,1782928240000,-1500.0,0.000149,5]
[426834440,1782928240000,-361.99685689,0.000149,2]
[426834441,1782928240000,-705.96126444,0.000149,2]
[426834438,1782928240000,-24778.68843674,0.000149,2]
[426834437,1782928240000,-7700.0,0.000148,5]
[426834435,1782928240000,-2868.93131616,0.000147,5]
[426834433,1782928240000,-681.41077262,0.000147,5]
[426834434,1782928240000,-1181.44976415,0.000147,5]
[426834459,1782928240000,-150.0,0.00016421,2]
[426834436,1782928240000,-361.99685689,0.000147,2]
[426834446,1782928240000,-398.28804281,0.00014999,2]
[426834458,1782928240000,-150.0,0.00016421,2]
[426834451,1782928240000,-1577.29301301,0.00016321,2]
[426834449,1782928240000,-442.15,0.00015,2]
[426834473,1782928240000,-151.0,0.00016521,2]
[426834467,1782928240000,-150.0,0.00016521,2]
[426834470,1782928240000,-152.0,0.00016521,2]
[426834469,1782928240000,-151.0,0.00016521,2]
[426834466,1782928240000,-152.0,0.00016521,2]
[426834465,1782928240000,-964.51767784,0.00016521,2]
[426834471,1782928240000,-150.0,0.00016521,2]
[426834464,1782928240000,-151.0,0.00016521,2]
[426834468,1782928240000,-151.0,0.00016521,2]
[426834462,1782928240000,-152.0,0.00016421,2]
[426834463,1782928240000,-153.0,0.00016421,2]
[426834452,1782928240000,-152.0,0.00016421,2]
[426834450,1782928240000,-1577.29301301,0.00015611,2]
[426834453,1782928240000,-151.0,0.00016421,2]
[426834472,1782928240000,-152.0,0.00016521,2]
[426834454,1782928240000,-151.0,0.00016421,2]
[426834460,1782928240000,-151.0,0.00016421,2]
[426834461,1782928240000,-150.0,0.00016421,2]
[426834504,1782928241000,-705.96126441,0.00020213,2]
[426834507,1782928241000,-501.0,0.00020818,4]
[426834509,1782928241000,-1278.0,0.00020929,2]
[426834511,1782928241000,-935.0,0.00020929,2]
[426834502,1782928241000,-501.0,0.00019879,3]
[426834515,1782928241000,-241.0,0.00021123,2]
[426834512,1782928241000,-226.07643517,0.00021099,2]
[426834517,1782928241000,-446.2810743,0.00021221,2]
[426834519,1782928241000,-3108.0422485,0.00021221,2]
[426834514,1782928241000,-20031.6454,0.00021121,2]
[426834508,1782928241000,-3566.0,0.00020929,2]
[426834510,1782928241000,-6089.0,0.00020929,2]
[426834533,1782928241000,-582.4797976,0.000219,2]
[426834516,1782928241000,-72515.6656834,0.00021221,2]
[426834518,1782928241000,-78468.996967,0.00021221,2]
[426834521,1782928241000,-3365.0983742,0.00021221,2]
[426834522,1782928241000,-216.66345934,0.00021254,2]
[426834523,1782928241000,-160.0,0.00021254,2]
[426834524,1782928241000,-180.65388692,0.000213,2]
[426834532,1782928241000,-501.0,0.00021758,5]
[426834499,1782928241000,-305.63334708,0.00019339,2]
[426834531,1782928241000,-442.15,0.000217,2]
[426834520,1782928241000,-418793.8094644,0.00021221,2]
[426834525,1782928241000,-582.4797976,0.000213,2]
[426834528,1782928241000,-582.4797976,0.000215,2]
[426834527,1782928241000,-180.65388692,0.000215,2]
[426834513,1782928241000,-1989.96493087,0.00021099,2]
[426834503,1782928241000,-2000.0,0.0002,7]
[426834491,1782928241000,-909.0,0.00018014,2]
[426834505,1782928241000,-330.70994268,0.00020484,2]
[426834526,1782928241000,-307.86576242,0.000213,2]
[426834476,1782928241000,-442.95,0.00017902,2]
[426834478,1782928241000,-174.53,0.00017902,2]
[426834474,1782928241000,-705.96126441,0.00016671,2]
[426834475,1782928241000,-161610.9391,0.00017847,2]
[426834481,1782928241000,-250.0,0.00018,2]
[426834477,1782928241000,-1101.29,0.00017902,2]
[426834479,1782928241000,-640.64,0.00017902,2]
[426834482,1782928241000,-151.0,0.00018,2]
[426834480,1782928241000,-501.0,0.00018,2]
[426834483,1782928241000,-151.0,0.00018,2]
[426834485,1782928241000,-150.0,0.00018,2]
[426834492,1782928241000,-442.95,0.00018349,2]
[426834486,1782928241000,-917.0,0.00018,2]
[426834494,1782928241000,-442.95,0.00018797,2]
[426834488,1782928241000,-916.0,0.00018,2]
[426834493,1782928241000,-705.96126441,0.00018442,2]
[426834484,1782928241000,-893.0,0.00018,2]
[426834490,1782928241000,-891.0,0.00018014,2]
[426834487,1782928241000,-151.0,0.00018,2]
[426834489,1782928241000,-915.0,0.00018,2]
[426834496,1782928241000,-442.15,0.00019,2]
[426834506,1782928241000,-153.76,0.00020681,2]
[426834495,1782928241000,-501.0,0.00018939,2]
[426834498,1782928241000,-442.95,0.00019244,2]
[426834501,1782928241000,-442.95,0.00019692,2]
[426834497,1782928241000,-500.0,0.00019225,2]
[426834500,1782928241000,-1280.77,0.00019626,2]
[426834530,1782928241000,-582.4797976,0.000217,2]
[426834557,1782928241000,-174.58582945,0.00023406,2]
[426834534,1782928241000,-5000.0,0.00021918,2]
[426834560,1782928241000,-247.11820177,0.00023406,2]
[426834569,1782928241000,-152.0,0.00023457,4]
[426834563,1782928241000,-228.02047186,0.00023406,2]
[426834568,1782928241000,-154.02969647,0.00023406,2]
[426834572,1782928241000,-501.0,0.00023636,7]
[426834571,1782928241000,-1149.0,0.00023529,5]
[426834578,1782928241000,-935.0,0.00023929,2]